[Event "*** SCC Grand Prix: Titled Tuesday Blitz"]
[Site "Chess.com"]
[Date "2020.09.08"]
[Round "3"]
[White "IvanSoriano1"]
[Black "Panterov"]
[Result "1-0"]
[WhiteElo "2460"]
[BlackElo "2241"]
[TimeControl "180+1"]
[EndTime "10:26:29 PDT"]
[Termination "IvanSoriano1 won by resignation"]

1. Nf3 {[%clk 0:03:00.9]} 1... Nf6 {[%clk 0:02:26.6]} 2. c4 {[%clk 0:02:59.1]}
2... g6 {[%clk 0:02:27.5]} 3. g3 {[%clk 0:02:54.1]} 3... Bg7 {[%clk 0:02:28.4]}
4. Bg2 {[%clk 0:02:54.6]} 4... c5 {[%clk 0:02:28.3]} 5. O-O {[%clk 0:02:55.5]}
5... Nc6 {[%clk 0:02:27.6]} 6. Nc3 {[%clk 0:02:56]} 6... b6 {[%clk 0:02:27.2]}
7. d4 {[%clk 0:02:55.2]} 7... cxd4 {[%clk 0:02:28]} 8. Nxd4 {[%clk 0:02:56.1]}
8... Bb7 {[%clk 0:02:28.6]} 9. Bg5 {[%clk 0:02:43.5]} 9... O-O {[%clk 0:02:28]}
10. Rc1 {[%clk 0:02:41.2]} 10... h6 {[%clk 0:02:23.9]} 11. Be3 {[%clk
0:02:39.1]} 11... Rc8 {[%clk 0:02:21.7]} 12. b3 {[%clk 0:02:37.3]} 12... d6
{[%clk 0:02:21.8]} 13. Nxc6 {[%clk 0:02:33.4]} 13... Bxc6 {[%clk 0:02:21.3]} 14.
Bxc6 {[%clk 0:02:33.8]} 14... Rxc6 {[%clk 0:02:20.6]} 15. Bd4 {[%clk 0:02:34.7]}
15... Qd7 {[%clk 0:02:14.8]} 16. Qd2 {[%clk 0:02:33.1]} 16... Re8 {[%clk
0:02:05.8]} 17. Bxf6 {[%clk 0:02:28.7]} 17... Bxf6 {[%clk 0:02:05.7]} 18. Qxh6
{[%clk 0:02:28.5]} 18... Bxc3 {[%clk 0:02:03.9]} 19. Rxc3 {[%clk 0:02:27]} 19...
Qe6 {[%clk 0:02:03]} 20. h4 {[%clk 0:02:21.4]} 20... Qxe2 {[%clk 0:01:57.5]} 21.
Re3 {[%clk 0:02:12.2]} 21... Qg4 {[%clk 0:01:55.3]} 22. Rfe1 {[%clk 0:02:09.4]}
22... e6 {[%clk 0:01:54.7]} 23. Re4 {[%clk 0:02:06.6]} 23... Qh5 {[%clk
0:01:49]} 24. Qd2 {[%clk 0:02:00.4]} 24... Rd8 {[%clk 0:01:46.9]} 25. Qf4 {[%clk
0:01:52.7]} 25... d5 {[%clk 0:01:42.7]} 26. cxd5 {[%clk 0:01:51.9]} 26... Qxd5
{[%clk 0:01:41.8]} 27. Re5 {[%clk 0:01:49.4]} 27... Qd2 {[%clk 0:01:40.2]} 28.
Qf6 {[%clk 0:01:45.8]} 28... Rcd6 {[%clk 0:01:40.3]} 29. h5 {[%clk 0:01:44.1]}
29... Rd5 {[%clk 0:01:30.4]} 30. hxg6 {[%clk 0:01:42.3]} 1-0

[Event "*** SCC Grand Prix: Titled Tuesday Blitz"]
[Site "Chess.com"]
[Date "2020.09.08"]
[Round "3"]
[White "Rud_Makarian"]
[Black "chigorin28"]
[Result "1-0"]
[WhiteElo "2760"]
[BlackElo "2432"]
[TimeControl "180+1"]
[EndTime "10:26:38 PDT"]
[Termination "Rud_Makarian won by resignation"]

1. d4 {[%clk 0:03:00.6]} 1... Nf6 {[%clk 0:02:59.7]} 2. Bg5 {[%clk 0:02:59.9]}
2... d5 {[%clk 0:02:58.2]} 3. Nf3 {[%clk 0:02:58.1]} 3... Bf5 {[%clk 0:02:54.1]}
4. e3 {[%clk 0:02:56.3]} 4... e6 {[%clk 0:02:53.6]} 5. c4 {[%clk 0:02:55.2]}
5... c6 {[%clk 0:02:53.5]} 6. Nc3 {[%clk 0:02:55.1]} 6... Be7 {[%clk 0:02:49]}
7. Qb3 {[%clk 0:02:54.5]} 7... Qb6 {[%clk 0:02:38.3]} 8. c5 {[%clk 0:02:54.6]}
8... Qxb3 {[%clk 0:02:26.1]} 9. axb3 {[%clk 0:02:54.2]} 9... Nbd7 {[%clk
0:02:17.1]} 10. b4 {[%clk 0:02:53.8]} 10... O-O {[%clk 0:02:02.9]} 11. b5 {[%clk
0:02:49.5]} 11... Rfc8 {[%clk 0:01:59.3]} 12. b4 {[%clk 0:02:43.7]} 12... h6
{[%clk 0:01:55.6]} 13. Bf4 {[%clk 0:02:43.4]} 13... g5 {[%clk 0:01:54.9]} 14.
Bg3 {[%clk 0:02:43]} 14... Ne4 {[%clk 0:01:48.2]} 15. Nxe4 {[%clk 0:02:35.3]}
15... Bxe4 {[%clk 0:01:48.6]} 16. bxc6 {[%clk 0:02:33.8]} 16... bxc6 {[%clk
0:01:49]} 17. Ba6 {[%clk 0:02:31.4]} 17... Rcb8 {[%clk 0:01:23.9]} 18. Bxb8
{[%clk 0:02:28.8]} 18... Rxb8 {[%clk 0:01:24.8]} 19. b5 {[%clk 0:02:12]} 19...
cxb5 {[%clk 0:01:23.1]} 20. c6 {[%clk 0:02:12.2]} 20... Bb4+ {[%clk 0:01:21.7]}
21. Ke2 {[%clk 0:02:10.9]} 21... Nb6 {[%clk 0:01:19]} 22. c7 {[%clk 0:02:10.2]}
22... Re8 {[%clk 0:01:13.8]} 23. Rhc1 {[%clk 0:02:09.5]} 23... Nc8 {[%clk
0:00:59.7]} 24. Bxb5 {[%clk 0:02:06.2]} 24... Re7 {[%clk 0:00:57.9]} 25. Ba6
{[%clk 0:02:06.2]} 25... Bd6 {[%clk 0:00:52.5]} 26. Bxc8 {[%clk 0:02:05.9]}
26... Bxc7 {[%clk 0:00:52.1]} 27. Rxa7 {[%clk 0:02:01.3]} 27... g4 {[%clk
0:00:51.5]} 28. Rcxc7 {[%clk 0:01:59.8]} 1-0

[Event "*** SCC Grand Prix: Titled Tuesday Blitz"]
[Site "Chess.com"]
[Date "2020.09.08"]
[Round "3"]
[White "BAS8892"]
[Black "Funo09"]
[Result "0-1"]
[WhiteElo "2610"]
[BlackElo "2846"]
[TimeControl "180+1"]
[EndTime "10:26:43 PDT"]
[Termination "Funo09 won by resignation"]

1. d4 {[%clk 0:03:00.9]} 1... Nf6 {[%clk 0:02:59.9]} 2. c4 {[%clk 0:03:00.5]}
2... Nc6 {[%clk 0:03:00.5]} 3. Nf3 {[%clk 0:02:56.1]} 3... d6 {[%clk 0:03:00.9]}
4. d5 {[%clk 0:02:49.6]} 4... Ne5 {[%clk 0:03:00.5]} 5. Nxe5 {[%clk 0:02:49.1]}
5... dxe5 {[%clk 0:03:01.4]} 6. g3 {[%clk 0:02:49.4]} 6... e6 {[%clk 0:03:01.3]}
7. Bg2 {[%clk 0:02:48.7]} 7... Bc5 {[%clk 0:03:01.6]} 8. O-O {[%clk 0:02:47.9]}
8... exd5 {[%clk 0:03:01.6]} 9. cxd5 {[%clk 0:02:47.5]} 9... O-O {[%clk
0:03:02.1]} 10. e4 {[%clk 0:02:42.4]} 10... c6 {[%clk 0:02:50.4]} 11. Nc3 {[%clk
0:02:41.6]} 11... h6 {[%clk 0:02:50.1]} 12. Qe2 {[%clk 0:02:29]} 12... Bg4
{[%clk 0:02:42.4]} 13. Qc4 {[%clk 0:02:28.4]} 13... Bd4 {[%clk 0:02:36.1]} 14.
h3 {[%clk 0:02:19.1]} 14... cxd5 {[%clk 0:02:26.9]} 15. exd5 {[%clk 0:02:18]}
15... Bd7 {[%clk 0:02:25.1]} 16. Qb3 {[%clk 0:02:12.9]} 16... b5 {[%clk
0:02:19]} 17. a4 {[%clk 0:02:08]} 17... bxa4 {[%clk 0:02:08.6]} 18. Nxa4 {[%clk
0:02:07.8]} 18... Rb8 {[%clk 0:02:08.5]} 19. Qd1 {[%clk 0:02:07.5]} 19... Bb5
{[%clk 0:02:07.7]} 20. Re1 {[%clk 0:02:07.1]} 20... Nxd5 {[%clk 0:02:06.9]} 21.
Ra3 {[%clk 0:01:32.7]} 21... Nb4 {[%clk 0:01:52.2]} 22. Nc3 {[%clk 0:01:25.1]}
22... Nd3 {[%clk 0:01:43.7]} 23. Nxb5 {[%clk 0:01:16.3]} 23... Nxe1 {[%clk
0:01:41.7]} 24. Bf1 {[%clk 0:01:16.3]} 24... Bxf2+ {[%clk 0:01:33.4]} 25. Kxf2
{[%clk 0:01:16.1]} 25... Qxd1 {[%clk 0:01:23]} 0-1

[Event "*** SCC Grand Prix: Titled Tuesday Blitz"]
[Site "Chess.com"]
[Date "2020.09.08"]
[Round "3"]
[White "Volodar_Murzin"]
[Black "CakeinSpace2002"]
[Result "1-0"]
[WhiteElo "2626"]
[BlackElo "2252"]
[TimeControl "180+1"]
[EndTime "10:26:44 PDT"]
[Termination "Volodar_Murzin won by resignation"]

1. e4 {[%clk 0:03:00.9]} 1... c6 {[%clk 0:02:59.5]} 2. d4 {[%clk 0:02:59.8]}
2... d5 {[%clk 0:03:00.4]} 3. Nc3 {[%clk 0:02:58.7]} 3... dxe4 {[%clk
0:03:00.3]} 4. Nxe4 {[%clk 0:02:59.6]} 4... Nf6 {[%clk 0:03:01]} 5. Nxf6+ {[%clk
0:02:57.2]} 5... exf6 {[%clk 0:03:01.9]} 6. Bc4 {[%clk 0:02:55.9]} 6... Na6
{[%clk 0:03:00.4]} 7. Nf3 {[%clk 0:02:49]} 7... Bd6 {[%clk 0:02:51.6]} 8. Qe2+
{[%clk 0:02:46.7]} 8... Qe7 {[%clk 0:02:51.2]} 9. Qxe7+ {[%clk 0:02:44.2]} 9...
Bxe7 {[%clk 0:02:52.1]} 10. c3 {[%clk 0:02:42.2]} 10... Nc7 {[%clk 0:02:49.8]}
11. Bf4 {[%clk 0:02:36.3]} 11... Be6 {[%clk 0:02:47.1]} 12. Bxe6 {[%clk
0:02:32.8]} 12... Nxe6 {[%clk 0:02:48]} 13. Be3 {[%clk 0:02:32.1]} 13... O-O-O
{[%clk 0:02:47.7]} 14. O-O-O {[%clk 0:02:31.3]} 14... Kb8 {[%clk 0:02:47.2]} 15.
Ne1 {[%clk 0:02:28.6]} 15... h5 {[%clk 0:02:47.1]} 16. Nd3 {[%clk 0:02:19.5]}
16... Bd6 {[%clk 0:02:38.7]} 17. Kc2 {[%clk 0:02:07.1]} 17... f5 {[%clk
0:02:27.7]} 18. Bc1 {[%clk 0:01:57.5]} 18... f4 {[%clk 0:02:18.1]} 19. Rde1
{[%clk 0:01:53.3]} 19... g5 {[%clk 0:02:16.6]} 20. Re4 {[%clk 0:01:46.1]} 20...
Nc7 {[%clk 0:02:10.2]} 21. h4 {[%clk 0:01:26]} 21... f6 {[%clk 0:02:03.9]} 22.
c4 {[%clk 0:01:20.9]} 22... Rhe8 {[%clk 0:01:41.8]} 23. Rxe8 {[%clk 0:01:16.8]}
23... Rxe8 {[%clk 0:01:42.7]} 24. hxg5 {[%clk 0:01:16.4]} 24... fxg5 {[%clk
0:01:42.7]} 25. Rxh5 {[%clk 0:01:15.8]} 25... g4 {[%clk 0:01:37.3]} 26. Bxf4
{[%clk 0:01:09.6]} 26... Bxf4 {[%clk 0:01:34.3]} 27. Nxf4 {[%clk 0:01:10.5]}
27... Re2+ {[%clk 0:01:34.3]} 28. Nxe2 {[%clk 0:01:10.1]} 1-0

[Event "*** SCC Grand Prix: Titled Tuesday Blitz"]
[Site "Chess.com"]
[Date "2020.09.08"]
[Round "3"]
[White "indfraeng"]
[Black "2nd_life"]
[Result "0-1"]
[WhiteElo "2336"]
[BlackElo "2535"]
[TimeControl "180+1"]
[EndTime "10:26:53 PDT"]
[Termination "2nd_life won by resignation"]

1. d4 {[%clk 0:02:43.6]} 1... Nf6 {[%clk 0:02:59.4]} 2. c4 {[%clk 0:02:43.6]}
2... e6 {[%clk 0:02:59.7]} 3. g3 {[%clk 0:02:43.7]} 3... c5 {[%clk 0:02:59.4]}
4. d5 {[%clk 0:02:43.4]} 4... exd5 {[%clk 0:02:59.9]} 5. cxd5 {[%clk 0:02:44.3]}
5... d6 {[%clk 0:03:00.4]} 6. Nc3 {[%clk 0:02:43]} 6... g6 {[%clk 0:03:00.7]} 7.
Bg2 {[%clk 0:02:43.7]} 7... Bg7 {[%clk 0:03:01.1]} 8. Nf3 {[%clk 0:02:44.4]}
8... O-O {[%clk 0:03:01.4]} 9. O-O {[%clk 0:02:45.2]} 9... Re8 {[%clk
0:03:01.7]} 10. Nd2 {[%clk 0:02:42]} 10... a6 {[%clk 0:02:59.7]} 11. a4 {[%clk
0:02:41.9]} 11... Nbd7 {[%clk 0:02:59.1]} 12. h3 {[%clk 0:02:42.4]} 12... Rb8
{[%clk 0:02:56.4]} 13. Nc4 {[%clk 0:02:42.9]} 13... Ne5 {[%clk 0:02:55]} 14. Na3
{[%clk 0:02:43.5]} 14... Nh5 {[%clk 0:02:29.6]} 15. e4 {[%clk 0:02:42.3]} 15...
Bd7 {[%clk 0:02:15]} 16. a5 {[%clk 0:02:26.2]} 16... Qxa5 {[%clk 0:01:41.5]} 17.
Bd2 {[%clk 0:02:09.2]} 17... Qd8 {[%clk 0:01:31.9]} 18. g4 {[%clk 0:01:58.5]}
18... Nf6 {[%clk 0:01:30.2]} 19. Qc2 {[%clk 0:01:51.5]} 19... b5 {[%clk
0:01:15.3]} 20. f4 {[%clk 0:01:51.1]} 20... Nexg4 {[%clk 0:01:05.3]} 21. hxg4
{[%clk 0:01:46.8]} 21... Nxg4 {[%clk 0:01:05.2]} 22. Bc1 {[%clk 0:01:18.1]}
22... Bd4+ {[%clk 0:01:01.9]} 0-1

[Event "*** SCC Grand Prix: Titled Tuesday Blitz"]
[Site "Chess.com"]
[Date "2020.09.08"]
[Round "3"]
[White "Bulldog167"]
[Black "Ginger_GM"]
[Result "0-1"]
[WhiteElo "2838"]
[BlackElo "2606"]
[TimeControl "180+1"]
[EndTime "10:26:54 PDT"]
[Termination "Ginger_GM won by checkmate"]

1. Nf3 {[%clk 0:03:00.9]} 1... f5 {[%clk 0:02:59.4]} 2. b3 {[%clk 0:03:01]} 2...
d6 {[%clk 0:02:59]} 3. Bb2 {[%clk 0:03:01.4]} 3... e5 {[%clk 0:02:58.9]} 4. d3
{[%clk 0:02:57.9]} 4... Nf6 {[%clk 0:02:58.5]} 5. g3 {[%clk 0:02:58.1]} 5... Be7
{[%clk 0:02:58.4]} 6. Bg2 {[%clk 0:02:58.6]} 6... O-O {[%clk 0:02:58.4]} 7. O-O
{[%clk 0:02:59.2]} 7... Qe8 {[%clk 0:02:58.8]} 8. c4 {[%clk 0:02:56.2]} 8... Qh5
{[%clk 0:02:58]} 9. Nc3 {[%clk 0:02:54.9]} 9... f4 {[%clk 0:02:58.2]} 10. Nd5
{[%clk 0:02:45.4]} 10... Nxd5 {[%clk 0:02:56]} 11. cxd5 {[%clk 0:02:46.3]} 11...
Nd7 {[%clk 0:02:55.7]} 12. Rc1 {[%clk 0:02:45.7]} 12... Bd8 {[%clk 0:02:55.8]}
13. Rc2 {[%clk 0:02:25.4]} 13... Nf6 {[%clk 0:02:54.2]} 14. Qc1 {[%clk
0:02:25.5]} 14... Bh3 {[%clk 0:02:44.4]} 15. Rxc7 {[%clk 0:01:10.4]} 15... Ng4
{[%clk 0:02:36.8]} 16. gxf4 {[%clk 0:00:54.1]} 16... Bxc7 {[%clk 0:01:44.8]} 17.
Qxc7 {[%clk 0:00:53.6]} 17... Rxf4 {[%clk 0:01:40.6]} 18. Rc1 {[%clk 0:00:35.3]}
18... Bxg2 {[%clk 0:01:37.3]} 19. Kxg2 {[%clk 0:00:34.8]} 19... Rxf3 {[%clk
0:01:36.4]} 20. exf3 {[%clk 0:00:34.5]} 20... Qxh2+ {[%clk 0:01:35.6]} 21. Kf1
{[%clk 0:00:35.2]} 21... Qxf2# {[%clk 0:01:36.3]} 0-1

[Event "*** SCC Grand Prix: Titled Tuesday Blitz"]
[Site "Chess.com"]
[Date "2020.09.08"]
[Round "3"]
[White "davigator"]
[Black "DanielDardha2005"]
[Result "0-1"]
[WhiteElo "2341"]
[BlackElo "2667"]
[TimeControl "180+1"]
[EndTime "10:27:04 PDT"]
[Termination "DanielDardha2005 won by checkmate"]

1. e4 {[%clk 0:03:00.9]} 1... g6 {[%clk 0:02:57.2]} 2. d4 {[%clk 0:02:59.9]}
2... Nf6 {[%clk 0:02:56.6]} 3. Nc3 {[%clk 0:02:59.8]} 3... d6 {[%clk 0:02:55.7]}
4. Bg5 {[%clk 0:02:59.5]} 4... Bg7 {[%clk 0:02:55.9]} 5. f3 {[%clk 0:02:57]}
5... c6 {[%clk 0:02:51.3]} 6. Qd2 {[%clk 0:02:56.5]} 6... Qa5 {[%clk 0:02:47.7]}
7. O-O-O {[%clk 0:02:53.4]} 7... b5 {[%clk 0:02:46.8]} 8. Kb1 {[%clk 0:02:53.2]}
8... b4 {[%clk 0:02:46.9]} 9. Nce2 {[%clk 0:02:52.7]} 9... Be6 {[%clk
0:02:45.8]} 10. Nc1 {[%clk 0:02:52.1]} 10... Nbd7 {[%clk 0:02:44.8]} 11. Nb3
{[%clk 0:02:51.3]} 11... Qb6 {[%clk 0:02:42.2]} 12. Be3 {[%clk 0:02:45.9]} 12...
Qb8 {[%clk 0:02:37.1]} 13. Ba6 {[%clk 0:02:35.6]} 13... O-O {[%clk 0:02:32.8]}
14. Ne2 {[%clk 0:02:34.5]} 14... Qb6 {[%clk 0:02:14.8]} 15. Bd3 {[%clk
0:02:29.4]} 15... Qb7 {[%clk 0:02:05.3]} 16. Na5 {[%clk 0:02:22.3]} 16... Qc7
{[%clk 0:02:05.5]} 17. Qxb4 {[%clk 0:02:13.3]} 17... c5 {[%clk 0:02:05.8]} 18.
dxc5 {[%clk 0:02:12]} 18... dxc5 {[%clk 0:02:06.3]} 19. Qa4 {[%clk 0:01:58.8]}
19... Nb6 {[%clk 0:02:04.2]} 20. Qc6 {[%clk 0:01:53.8]} 20... Qxc6 {[%clk
0:02:04.4]} 21. Nxc6 {[%clk 0:01:52.1]} 21... c4 {[%clk 0:02:05.3]} 22. Nxe7+
{[%clk 0:01:50.1]} 22... Kh8 {[%clk 0:02:01.9]} 23. e5 {[%clk 0:01:47.3]} 23...
cxd3 {[%clk 0:02:01.4]} 24. Nc3 {[%clk 0:01:25.4]} 24... dxc2+ {[%clk
0:01:57.4]} 25. Kxc2 {[%clk 0:01:24.2]} 25... Ng8 {[%clk 0:01:58.3]} 26. Nxg8
{[%clk 0:01:20.4]} 26... Kxg8 {[%clk 0:01:59.2]} 27. f4 {[%clk 0:01:20.8]} 27...
Rfc8 {[%clk 0:01:54]} 28. Kb1 {[%clk 0:01:17.7]} 28... Bf8 {[%clk 0:01:54.1]}
29. Ka1 {[%clk 0:01:12.3]} 29... Nc4 {[%clk 0:01:49.4]} 30. Bc1 {[%clk 0:01:12]}
30... Rab8 {[%clk 0:01:45.8]} 31. Rhe1 {[%clk 0:01:07.7]} 31... Bb4 {[%clk
0:01:40.9]} 32. Rf1 {[%clk 0:01:03.6]} 32... Nxb2 {[%clk 0:01:39.8]} 33. Bxb2
{[%clk 0:01:02.5]} 33... Bxc3 {[%clk 0:01:40]} 34. Bxc3 {[%clk 0:01:02.8]} 34...
Rxc3 {[%clk 0:01:40.9]} 35. h3 {[%clk 0:01:01.5]} 35... Rc2 {[%clk 0:01:40.2]}
36. Rc1 {[%clk 0:01:01.8]} 36... Rxa2# {[%clk 0:01:39.7]} 0-1

[Event "*** SCC Grand Prix: Titled Tuesday Blitz"]
[Site "Chess.com"]
[Date "2020.09.08"]
[Round "3"]
[White "earling8018"]
[Black "ARMQUEEN"]
[Result "1-0"]
[WhiteElo "2049"]
[BlackElo "2453"]
[TimeControl "180+1"]
[EndTime "10:27:09 PDT"]
[Termination "earling8018 won by resignation"]

1. d4 {[%clk 0:03:00.9]} 1... d5 {[%clk 0:02:58]} 2. c4 {[%clk 0:02:59.9]} 2...
dxc4 {[%clk 0:02:58.1]} 3. e4 {[%clk 0:02:58.7]} 3... e5 {[%clk 0:02:57.7]} 4.
dxe5 {[%clk 0:02:53.3]} 4... Qxd1+ {[%clk 0:02:40.9]} 5. Kxd1 {[%clk 0:02:52.2]}
5... Bc5 {[%clk 0:02:39.4]} 6. Bxc4 {[%clk 0:02:29.5]} 6... Bxf2 {[%clk
0:02:35.6]} 7. Nc3 {[%clk 0:02:23.3]} 7... Nc6 {[%clk 0:02:27.5]} 8. Nd5 {[%clk
0:02:09.8]} 8... Bg4+ {[%clk 0:02:21.1]} 9. Nf3 {[%clk 0:02:08.2]} 9... O-O-O
{[%clk 0:02:19.1]} 10. Bf4 {[%clk 0:01:34.8]} 10... Na5 {[%clk 0:02:12.9]} 11.
Be2 {[%clk 0:01:18.7]} 11... c6 {[%clk 0:02:08.2]} 12. b4 {[%clk 0:01:13.9]}
12... cxd5 {[%clk 0:01:32.8]} 13. bxa5 {[%clk 0:01:13.2]} 13... dxe4+ {[%clk
0:01:32.9]} 14. Nd2 {[%clk 0:01:11.5]} 14... Bd7 {[%clk 0:01:30.3]} 15. Rc1+
{[%clk 0:01:03.4]} 15... Bc6 {[%clk 0:01:30]} 16. e6 {[%clk 0:00:39.6]} 16... e3
{[%clk 0:01:18.9]} 17. Rxc6+ {[%clk 0:00:36.2]} 1-0

[Event "*** SCC Grand Prix: Titled Tuesday Blitz"]
[Site "Chess.com"]
[Date "2020.09.08"]
[Round "3"]
[White "WPWPWP-2015"]
[Black "KiranManisha"]
[Result "0-1"]
[WhiteElo "2439"]
[BlackElo "2260"]
[TimeControl "180+1"]
[EndTime "10:27:28 PDT"]
[Termination "KiranManisha won by checkmate"]

1. e4 {[%clk 0:02:59.3]} 1... c5 {[%clk 0:02:54.7]} 2. Nc3 {[%clk 0:02:58.1]}
2... d6 {[%clk 0:02:54.2]} 3. d4 {[%clk 0:02:57.8]} 3... cxd4 {[%clk 0:02:49.6]}
4. Qxd4 {[%clk 0:02:58.7]} 4... a6 {[%clk 0:02:49.7]} 5. f4 {[%clk 0:02:52.9]}
5... Nc6 {[%clk 0:02:39.6]} 6. Qe3 {[%clk 0:02:49]} 6... g6 {[%clk 0:02:39.7]}
7. Nf3 {[%clk 0:02:47.3]} 7... Bg7 {[%clk 0:02:39.9]} 8. b3 {[%clk 0:02:45.7]}
8... Nf6 {[%clk 0:02:40.3]} 9. Bb2 {[%clk 0:02:45.6]} 9... O-O {[%clk
0:02:40.7]} 10. O-O-O {[%clk 0:02:44.6]} 10... Qa5 {[%clk 0:02:39]} 11. Kb1
{[%clk 0:02:43]} 11... b5 {[%clk 0:02:38.7]} 12. h3 {[%clk 0:02:29.4]} 12... Bb7
{[%clk 0:02:38.4]} 13. g4 {[%clk 0:02:27.1]} 13... Rfc8 {[%clk 0:02:35.8]} 14.
g5 {[%clk 0:02:26.8]} 14... Nh5 {[%clk 0:02:35.6]} 15. f5 {[%clk 0:02:06.9]}
15... Nb4 {[%clk 0:02:33.1]} 16. a3 {[%clk 0:02:05]} 16... Rxc3 {[%clk
0:02:01.2]} 17. Qf2 {[%clk 0:01:23.1]} 17... Nc6 {[%clk 0:01:44.7]} 18. f6
{[%clk 0:01:18.3]} 18... exf6 {[%clk 0:01:42.1]} 19. b4 {[%clk 0:01:16.9]} 19...
Nxb4 {[%clk 0:01:39.7]} 20. Bxc3 {[%clk 0:00:46]} 20... Qxa3 {[%clk 0:01:38.4]}
21. gxf6 {[%clk 0:00:25.1]} 21... Qa2+ {[%clk 0:01:35]} 22. Kc1 {[%clk 0:00:23]}
22... Bh6+ {[%clk 0:01:35.5]} 23. Ng5 {[%clk 0:00:18.4]} 23... Bxg5+ {[%clk
0:01:35]} 24. Qf4 {[%clk 0:00:18.4]} 24... Bxf4+ {[%clk 0:01:35]} 25. Bd2 {[%clk
0:00:16.7]} 25... Qxc2# {[%clk 0:01:32.5]} 0-1

[Event "*** SCC Grand Prix: Titled Tuesday Blitz"]
[Site "Chess.com"]
[Date "2020.09.08"]
[Round "3"]
[White "CzechmVIII"]
[Black "aa175"]
[Result "0-1"]
[WhiteElo "2164"]
[BlackElo "2388"]
[TimeControl "180+1"]
[EndTime "10:27:28 PDT"]
[Termination "aa175 won by checkmate"]

1. e4 {[%clk 0:03:00.9]} 1... c5 {[%clk 0:02:58.8]} 2. Nf3 {[%clk 0:03:00.7]}
2... d6 {[%clk 0:02:58]} 3. d4 {[%clk 0:03:00.7]} 3... cxd4 {[%clk 0:02:58.6]}
4. Nxd4 {[%clk 0:03:01.3]} 4... Nf6 {[%clk 0:02:59.1]} 5. Nc3 {[%clk 0:03:01.7]}
5... a6 {[%clk 0:02:55.6]} 6. Bg5 {[%clk 0:03:01.6]} 6... Nbd7 {[%clk
0:02:55.2]} 7. Bc4 {[%clk 0:03:01.5]} 7... e6 {[%clk 0:02:51.6]} 8. Qe2 {[%clk
0:02:53.9]} 8... h6 {[%clk 0:02:50]} 9. Bh4 {[%clk 0:02:34.6]} 9... b5 {[%clk
0:02:48.2]} 10. Bd5 {[%clk 0:01:59.2]} 10... exd5 {[%clk 0:02:45.8]} 11. Nc6
{[%clk 0:01:47.8]} 11... Qc7 {[%clk 0:02:41]} 12. exd5+ {[%clk 0:01:47.9]} 12...
Ne5 {[%clk 0:02:40.7]} 13. f4 {[%clk 0:01:25.5]} 13... Bg4 {[%clk 0:02:39.6]}
14. Qe3 {[%clk 0:01:06.3]} 14... Nxd5 {[%clk 0:02:28.7]} 15. Nxd5 {[%clk
0:00:59.4]} 15... Qxc6 {[%clk 0:02:27.1]} 16. fxe5 {[%clk 0:00:42]} 16... Qxd5
{[%clk 0:02:25.4]} 17. exd6+ {[%clk 0:00:42.3]} 17... Kd7 {[%clk 0:02:25.5]} 18.
O-O {[%clk 0:00:33.6]} 18... g5 {[%clk 0:02:10.1]} 19. Bg3 {[%clk 0:00:21.1]}
19... f5 {[%clk 0:02:10]} 20. h3 {[%clk 0:00:19.5]} 20... f4 {[%clk 0:02:06.5]}
21. Bxf4 {[%clk 0:00:19.9]} 21... gxf4 {[%clk 0:02:07.4]} 22. Qxf4 {[%clk
0:00:20.4]} 22... Be6 {[%clk 0:02:06.2]} 23. Rad1 {[%clk 0:00:18.4]} 23... Qc5+
{[%clk 0:02:05.9]} 24. Kh1 {[%clk 0:00:18.1]} 24... Bxd6 {[%clk 0:02:03.6]} 25.
Qh4 {[%clk 0:00:17.3]} 25... Raf8 {[%clk 0:01:58.6]} 26. Rfe1 {[%clk 0:00:17.5]}
26... Rhg8 {[%clk 0:01:46.4]} 27. c3 {[%clk 0:00:16.6]} 27... Rxg2 {[%clk
0:01:35.1]} 28. Qxh6 {[%clk 0:00:14.3]} 28... Rh2# {[%clk 0:01:34.3]} 0-1

[Event "*** SCC Grand Prix: Titled Tuesday Blitz"]
[Site "Chess.com"]
[Date "2020.09.08"]
[Round "3"]
[White "RaunakSadhwani2005"]
[Black "r31415"]
[Result "1-0"]
[WhiteElo "2860"]
[BlackElo "2455"]
[TimeControl "180+1"]
[EndTime "10:27:40 PDT"]
[Termination "RaunakSadhwani2005 won by resignation"]

1. e4 {[%clk 0:03:00.9]} 1... e5 {[%clk 0:02:59.8]} 2. Nf3 {[%clk 0:03:00]} 2...
Nc6 {[%clk 0:03:00.3]} 3. g3 {[%clk 0:03:00.2]} 3... Nf6 {[%clk 0:02:58]} 4. d3
{[%clk 0:03:00.4]} 4... g6 {[%clk 0:02:51.8]} 5. Bg2 {[%clk 0:03:00.6]} 5... Bg7
{[%clk 0:02:52.4]} 6. O-O {[%clk 0:03:01.5]} 6... O-O {[%clk 0:02:52.9]} 7. Re1
{[%clk 0:03:01.4]} 7... d6 {[%clk 0:02:48.1]} 8. c3 {[%clk 0:02:54.5]} 8... Ne8
{[%clk 0:02:47.6]} 9. d4 {[%clk 0:02:53.8]} 9... Qe7 {[%clk 0:02:40.6]} 10. Na3
{[%clk 0:02:48.4]} 10... Bg4 {[%clk 0:02:38.5]} 11. Nc2 {[%clk 0:02:43.2]} 11...
Rd8 {[%clk 0:02:27.8]} 12. h3 {[%clk 0:02:42.8]} 12... Bc8 {[%clk 0:02:27.3]}
13. Bg5 {[%clk 0:02:27.4]} 13... f6 {[%clk 0:02:26.4]} 14. Be3 {[%clk
0:02:27.7]} 14... Qf7 {[%clk 0:02:25.9]} 15. Qe2 {[%clk 0:02:26.1]} 15... h6
{[%clk 0:02:20.8]} 16. b4 {[%clk 0:02:23.5]} 16... f5 {[%clk 0:02:12.8]} 17.
exf5 {[%clk 0:02:23.7]} 17... gxf5 {[%clk 0:02:09.1]} 18. b5 {[%clk 0:02:23.9]}
18... Ne7 {[%clk 0:02:08.1]} 19. dxe5 {[%clk 0:02:23.9]} 19... dxe5 {[%clk
0:02:07.8]} 20. Bc5 {[%clk 0:02:24.3]} 20... e4 {[%clk 0:02:01.4]} 21. Nfd4
{[%clk 0:02:24.4]} 21... b6 {[%clk 0:01:58.7]} 22. Bxe7 {[%clk 0:02:18.6]} 22...
Qxe7 {[%clk 0:01:58.8]} 23. Nc6 {[%clk 0:02:17.7]} 23... Qf6 {[%clk 0:01:56.4]}
24. Nxd8 {[%clk 0:02:17.3]} 24... Qxd8 {[%clk 0:01:57.3]} 25. Rad1 {[%clk
0:02:17.3]} 25... Qe7 {[%clk 0:01:55.5]} 26. Nd4 {[%clk 0:02:17]} 26... Nd6
{[%clk 0:01:54]} 27. Nc6 {[%clk 0:02:00.8]} 27... Qf6 {[%clk 0:01:54.1]} 28.
Nxa7 {[%clk 0:01:54.4]} 28... Be6 {[%clk 0:01:54.2]} 29. Nc6 {[%clk 0:01:46.1]}
29... Bc4 {[%clk 0:01:51.7]} 30. Rxd6 {[%clk 0:01:27.7]} 30... Qxc3 {[%clk
0:01:32.5]} 31. Qd2 {[%clk 0:01:26.2]} 31... cxd6 {[%clk 0:01:06.2]} 32. Qxc3
{[%clk 0:01:25.7]} 32... Bxc3 {[%clk 0:01:07.1]} 33. Rc1 {[%clk 0:01:23.9]}
33... Bxb5 {[%clk 0:00:45]} 34. Rxc3 {[%clk 0:01:22.1]} 34... Kg7 {[%clk
0:00:45.9]} 35. Nd4 {[%clk 0:01:21.2]} 35... Bd3 {[%clk 0:00:45.6]} 1-0